[Event "*** Titled Tuesday Blitz"]
[Site "Chess.com"]
[Date "2020.11.03"]
[Round "1"]
[White "goldenpuppy"]
[Black "GoltsevDmitry2000"]
[Result "0-1"]
[WhiteElo "2352"]
[BlackElo "2691"]
[TimeControl "180+1"]
[EndTime "10:05:20 PST"]
[Termination "GoltsevDmitry2000 won by resignation"]

1. e4 {[%clk 0:03:00.9]} 1... c5 {[%clk 0:03:00.1]} 2. Nf3 {[%clk 0:02:59.8]}
2... e6 {[%clk 0:03:00]} 3. d4 {[%clk 0:02:59.6]} 3... cxd4 {[%clk 0:03:00.9]}
4. Nxd4 {[%clk 0:03:00.2]} 4... a6 {[%clk 0:03:01]} 5. c4 {[%clk 0:02:59.8]}
5... Qc7 {[%clk 0:02:57.7]} 6. a3 {[%clk 0:02:57.5]} 6... Nf6 {[%clk 0:02:57.6]}
7. Nc3 {[%clk 0:02:57.7]} 7... Nc6 {[%clk 0:02:55.8]} 8. Be3 {[%clk 0:02:57]}
8... b6 {[%clk 0:02:53.8]} 9. Rc1 {[%clk 0:02:56.3]} 9... Bb7 {[%clk 0:02:53]}
10. f3 {[%clk 0:02:56.7]} 10... Ne5 {[%clk 0:02:51.6]} 11. Be2 {[%clk
0:02:53.4]} 11... Rc8 {[%clk 0:02:46.7]} 12. O-O {[%clk 0:02:50.9]} 12... Be7
{[%clk 0:02:45.5]} 13. b4 {[%clk 0:02:32.7]} 13... O-O {[%clk 0:02:37.9]} 14.
Kh1 {[%clk 0:02:30.4]} 14... d6 {[%clk 0:02:28.5]} 15. Nb3 {[%clk 0:02:29.2]}
15... Nfd7 {[%clk 0:02:23.6]} 16. Na4 {[%clk 0:02:23.4]} 16... Bc6 {[%clk
0:02:16.8]} 17. Nb2 {[%clk 0:02:21.5]} 17... a5 {[%clk 0:02:10.4]} 18. b5 {[%clk
0:02:20]} 18... Bb7 {[%clk 0:02:09.8]} 19. f4 {[%clk 0:02:20.4]} 19... Ng6
{[%clk 0:02:08.8]} 20. Bf3 {[%clk 0:02:19.8]} 20... Nc5 {[%clk 0:02:08.8]} 21.
Nxc5 {[%clk 0:02:18.2]} 21... dxc5 {[%clk 0:02:08.5]} 22. Qe1 {[%clk 0:02:18.2]}
22... Nxf4 {[%clk 0:02:05.2]} 23. e5 {[%clk 0:02:14.3]} 23... Ng6 {[%clk
0:02:02.6]} 24. Bxb7 {[%clk 0:02:10.2]} 24... Qxb7 {[%clk 0:02:03.5]} 25. Nd3
{[%clk 0:02:10.1]} 25... Rcd8 {[%clk 0:02:00.8]} 26. Rc3 {[%clk 0:02:01.2]}
26... Qe4 {[%clk 0:01:59.2]} 27. Bf4 {[%clk 0:01:53.7]} 27... Qxe1 {[%clk
0:01:56.4]} 28. Nxe1 {[%clk 0:01:53.5]} 28... Rd1 {[%clk 0:01:53.3]} 29. Rd3
{[%clk 0:01:46.3]} 29... Ra1 {[%clk 0:01:47.1]} 30. g3 {[%clk 0:01:45.8]} 30...
Rd8 {[%clk 0:01:43.8]} 31. Rxd8+ {[%clk 0:01:44]} 31... Bxd8 {[%clk 0:01:44.7]}
32. Kg2 {[%clk 0:01:44.6]} 32... Rxa3 {[%clk 0:01:43.6]} 33. Nf3 {[%clk
0:01:44.8]} 33... Rd3 {[%clk 0:01:42.2]} 34. Ra1 {[%clk 0:01:40.5]} 34... Kf8
{[%clk 0:01:37.6]} 35. h4 {[%clk 0:01:40]} 35... Ke8 {[%clk 0:01:34.6]} 36. h5
{[%clk 0:01:39.8]} 36... Ne7 {[%clk 0:01:34.3]} 37. Kf2 {[%clk 0:01:40.2]} 37...
Nf5 {[%clk 0:01:32.3]} 38. g4 {[%clk 0:01:39.7]} 38... Nd4 {[%clk 0:01:31.3]}
39. Ne1 {[%clk 0:01:39.2]} 39... Rc3 {[%clk 0:01:30.9]} 40. Ng2 {[%clk
0:01:35.6]} 40... Rxc4 {[%clk 0:01:26]} 41. Ne3 {[%clk 0:01:36]} 41... Bh4+
{[%clk 0:01:24.9]} 42. Kg2 {[%clk 0:01:33.9]} 42... Rb4 {[%clk 0:01:24.3]} 43.
Kh3 {[%clk 0:01:33.9]} 43... Be7 {[%clk 0:01:23.9]} 44. Bh2 {[%clk 0:01:29.3]}
44... Rb3 {[%clk 0:01:20.8]} 45. Bg1 {[%clk 0:01:25.8]} 45... Nc2 {[%clk
0:01:20.7]} 0-1

[Event "*** Titled Tuesday Blitz"]
[Site "Chess.com"]
[Date "2020.11.03"]
[Round "1"]
[White "Sacbutt"]
[Black "GMartin_Petrov"]
[Result "0-1"]
[WhiteElo "2300"]
[BlackElo "2617"]
[TimeControl "180+1"]
[EndTime "10:05:21 PST"]
[Termination "GMartin_Petrov won by resignation"]

1. d4 {[%clk 0:03:00]} 1... Nf6 {[%clk 0:02:58]} 2. c4 {[%clk 0:02:59.9]} 2...
e6 {[%clk 0:02:58.7]} 3. Nf3 {[%clk 0:02:59]} 3... d5 {[%clk 0:02:58.8]} 4. Nc3
{[%clk 0:02:58.3]} 4... Be7 {[%clk 0:02:57.8]} 5. Bg5 {[%clk 0:02:57.8]} 5...
O-O {[%clk 0:02:57.2]} 6. e3 {[%clk 0:02:57.8]} 6... b6 {[%clk 0:02:56.3]} 7.
Bxf6 {[%clk 0:02:52.5]} 7... Bxf6 {[%clk 0:02:55.4]} 8. cxd5 {[%clk 0:02:53.4]}
8... exd5 {[%clk 0:02:54.9]} 9. Bd3 {[%clk 0:02:53.2]} 9... Bb7 {[%clk
0:02:54.1]} 10. O-O {[%clk 0:02:52.6]} 10... Nd7 {[%clk 0:02:53.8]} 11. Rc1
{[%clk 0:02:50.6]} 11... c5 {[%clk 0:02:49.2]} 12. Qe2 {[%clk 0:02:45.7]} 12...
Re8 {[%clk 0:02:46.7]} 13. Qc2 {[%clk 0:02:31.1]} 13... g6 {[%clk 0:02:44.4]}
14. Rfd1 {[%clk 0:02:27.8]} 14... Rc8 {[%clk 0:02:40.1]} 15. Qb1 {[%clk
0:02:19.2]} 15... a6 {[%clk 0:02:29.7]} 16. b3 {[%clk 0:02:11.7]} 16... c4
{[%clk 0:02:23.8]} 17. bxc4 {[%clk 0:02:05.6]} 17... dxc4 {[%clk 0:02:23.3]} 18.
Be2 {[%clk 0:02:01.6]} 18... b5 {[%clk 0:02:20.4]} 19. e4 {[%clk 0:01:54.6]}
19... Nb6 {[%clk 0:02:15.1]} 20. e5 {[%clk 0:01:33.8]} 20... Bg7 {[%clk
0:02:13.8]} 21. Ne1 {[%clk 0:01:21]} 21... Nd5 {[%clk 0:01:36.8]} 22. Nxd5
{[%clk 0:01:15.7]} 22... Bxd5 {[%clk 0:01:35.6]} 23. Bf3 {[%clk 0:01:14.5]}
23... Qd7 {[%clk 0:01:26.1]} 24. Bxd5 {[%clk 0:01:08.5]} 24... Qxd5 {[%clk
0:01:27]} 25. Nf3 {[%clk 0:01:08.7]} 25... a5 {[%clk 0:01:18.2]} 26. a3 {[%clk
0:01:08]} 26... Bf8 {[%clk 0:01:16.7]} 27. Qb2 {[%clk 0:01:04.6]} 27... b4
{[%clk 0:01:15]} 28. axb4 {[%clk 0:01:04.6]} 28... axb4 {[%clk 0:01:15.8]} 29.
h3 {[%clk 0:01:04.6]} 29... c3 {[%clk 0:01:10.5]} 30. Qc2 {[%clk 0:00:59.2]}
30... b3 {[%clk 0:01:08.6]} 31. Qd3 {[%clk 0:00:58.9]} 31... c2 {[%clk
0:01:01.2]} 0-1

[Event "*** Titled Tuesday Blitz"]
[Site "Chess.com"]
[Date "2020.11.03"]
[Round "1"]
[White "Mbneu"]
[Black "Lion-Al-Messi"]
[Result "1-0"]
[WhiteElo "2233"]
[BlackElo "2537"]
[TimeControl "180+1"]
[EndTime "10:05:23 PST"]
[Termination "Mbneu won by resignation"]

1. d4 {[%clk 0:02:57.3]} 1... d5 {[%clk 0:02:59.9]} 2. c4 {[%clk 0:02:57.6]}
2... Nf6 {[%clk 0:03:00.3]} 3. cxd5 {[%clk 0:02:56.3]} 3... Nxd5 {[%clk
0:03:01.2]} 4. e4 {[%clk 0:02:56]} 4... Nf6 {[%clk 0:03:01.4]} 5. Nc3 {[%clk
0:02:55.6]} 5... c5 {[%clk 0:03:01.6]} 6. d5 {[%clk 0:02:45.7]} 6... Nbd7 {[%clk
0:03:00.8]} 7. Nf3 {[%clk 0:02:41.2]} 7... Nb6 {[%clk 0:02:49.3]} 8. a4 {[%clk
0:02:30.8]} 8... Bg4 {[%clk 0:02:38.5]} 9. a5 {[%clk 0:02:28.4]} 9... Nbd7
{[%clk 0:02:38.6]} 10. Bb5 {[%clk 0:02:20.9]} 10... a6 {[%clk 0:02:36.5]} 11.
Ba4 {[%clk 0:02:19.8]} 11... Qc7 {[%clk 0:02:32.4]} 12. O-O {[%clk 0:02:13.4]}
12... g6 {[%clk 0:02:31.5]} 13. e5 {[%clk 0:02:04.4]} 13... Bxf3 {[%clk
0:02:28]} 14. Qxf3 {[%clk 0:02:03.7]} 14... Qxe5 {[%clk 0:02:27.6]} 15. Bf4
{[%clk 0:01:54.6]} 15... Qf5 {[%clk 0:02:26]} 16. d6 {[%clk 0:01:53.7]} 16...
Rd8 {[%clk 0:01:54.2]} 17. dxe7 {[%clk 0:01:41.4]} 17... Bxe7 {[%clk 0:01:54.2]}
18. Rfe1 {[%clk 0:01:41.9]} 18... Kf8 {[%clk 0:01:39.5]} 19. Bh6+ {[%clk
0:01:37.7]} 19... Ke8 {[%clk 0:01:39.6]} 20. Rad1 {[%clk 0:01:30.7]} 20... Qxf3
{[%clk 0:01:05.8]} 21. gxf3 {[%clk 0:01:31.6]} 21... Rc8 {[%clk 0:01:04]} 22.
Bg7 {[%clk 0:01:27.3]} 22... Kd8 {[%clk 0:00:43.7]} 23. Bxh8 {[%clk 0:01:26.2]}
23... Kc7 {[%clk 0:00:44]} 24. Rxe7 {[%clk 0:01:24.5]} 24... Rxh8 {[%clk
0:00:40.9]} 25. Bxd7 {[%clk 0:01:23]} 25... Kb8 {[%clk 0:00:40.3]} 26. Rxf7
{[%clk 0:01:20.3]} 26... Nh5 {[%clk 0:00:40.1]} 27. Bg4 {[%clk 0:01:19]} 27...
Re8 {[%clk 0:00:37.2]} 28. Bxh5 {[%clk 0:01:17.7]} 28... gxh5 {[%clk 0:00:36.6]}
29. Rdd7 {[%clk 0:01:18.1]} 1-0

[Event "*** Titled Tuesday Blitz"]
[Site "Chess.com"]
[Date "2020.11.03"]
[Round "1"]
[White "rasmussvane"]
[Black "smshk35"]
[Result "1-0"]
[WhiteElo "2944"]
[BlackElo "2458"]
[TimeControl "180+1"]
[EndTime "10:05:27 PST"]
[Termination "rasmussvane won by resignation"]

1. Nf3 {[%clk 0:03:00.9]} 1... Nf6 {[%clk 0:02:22.5]} 2. g3 {[%clk 0:03:00]}
2... e6 {[%clk 0:02:22.8]} 3. Bg2 {[%clk 0:03:00.3]} 3... Be7 {[%clk 0:02:20.8]}
4. O-O {[%clk 0:03:01.2]} 4... O-O {[%clk 0:02:20.9]} 5. c4 {[%clk 0:03:01.5]}
5... b6 {[%clk 0:02:21]} 6. Ne5 {[%clk 0:02:55.3]} 6... c6 {[%clk 0:02:20.8]} 7.
d4 {[%clk 0:02:54.5]} 7... d5 {[%clk 0:02:20.7]} 8. Nc3 {[%clk 0:02:53.2]} 8...
Bb7 {[%clk 0:02:20.3]} 9. e4 {[%clk 0:02:43]} 9... Nbd7 {[%clk 0:02:13.8]} 10.
Nxd7 {[%clk 0:02:24.5]} 10... Qxd7 {[%clk 0:01:59.3]} 11. e5 {[%clk 0:02:24.4]}
11... Ne8 {[%clk 0:01:55.2]} 12. cxd5 {[%clk 0:02:24.4]} 12... cxd5 {[%clk
0:01:52.6]} 13. h4 {[%clk 0:02:18.5]} 13... Nc7 {[%clk 0:01:47.3]} 14. h5 {[%clk
0:02:18.6]} 14... Rfc8 {[%clk 0:01:43.1]} 15. Qg4 {[%clk 0:02:16.8]} 15... Nb5
{[%clk 0:01:27.3]} 16. Bh6 {[%clk 0:02:07.3]} 16... g6 {[%clk 0:01:26.9]} 17.
Rac1 {[%clk 0:01:39.1]} 17... Nxc3 {[%clk 0:01:21.8]} 18. bxc3 {[%clk
0:01:33.6]} 18... Ba6 {[%clk 0:01:21.6]} 19. Rfd1 {[%clk 0:01:28.9]} 19... Ba3
{[%clk 0:01:09.6]} 20. Bg5 {[%clk 0:01:15.6]} 20... Be7 {[%clk 0:00:39.4]} 21.
Bf6 {[%clk 0:01:11.5]} 21... Bxf6 {[%clk 0:00:39.3]} 22. exf6 {[%clk 0:01:12.4]}
22... Qd8 {[%clk 0:00:30.8]} 23. hxg6 {[%clk 0:01:10.9]} 23... fxg6 {[%clk
0:00:27.4]} 24. Qxe6+ {[%clk 0:01:10.5]} 1-0

[Event "*** Titled Tuesday Blitz"]
[Site "Chess.com"]
[Date "2020.11.03"]
[Round "1"]
[White "krzyzan94"]
[Black "PauloCesarCosta_sad"]
[Result "1-0"]
[WhiteElo "2652"]
[BlackElo "2325"]
[TimeControl "180+1"]
[EndTime "10:05:29 PST"]
[Termination "krzyzan94 won on time"]

1. Nf3 {[%clk 0:03:00.8]} 1... Nf6 {[%clk 0:02:59.3]} 2. g3 {[%clk 0:03:01.3]}
2... d5 {[%clk 0:02:57.2]} 3. Bg2 {[%clk 0:03:01.8]} 3... Bg4 {[%clk 0:02:57.2]}
4. O-O {[%clk 0:03:01.7]} 4... c6 {[%clk 0:02:57.3]} 5. c4 {[%clk 0:03:00.7]}
5... e6 {[%clk 0:02:56.8]} 6. d3 {[%clk 0:03:00]} 6... dxc4 {[%clk 0:02:55.1]}
7. dxc4 {[%clk 0:02:59.8]} 7... Qxd1 {[%clk 0:02:55]} 8. Rxd1 {[%clk 0:03:00.7]}
8... Nbd7 {[%clk 0:02:54.6]} 9. Nc3 {[%clk 0:02:59.9]} 9... Bb4 {[%clk
0:02:52.8]} 10. Bd2 {[%clk 0:02:57.7]} 10... O-O {[%clk 0:02:50.3]} 11. Rac1
{[%clk 0:02:54.5]} 11... Rfd8 {[%clk 0:02:47.5]} 12. a3 {[%clk 0:02:52.8]} 12...
Be7 {[%clk 0:02:42.8]} 13. h3 {[%clk 0:02:45.4]} 13... Bh5 {[%clk 0:02:33.6]}
14. g4 {[%clk 0:02:42.3]} 14... Bg6 {[%clk 0:02:33.5]} 15. Be3 {[%clk
0:02:42.2]} 15... Ne4 {[%clk 0:02:21.5]} 16. Na4 {[%clk 0:02:31.3]} 16... Nec5
{[%clk 0:02:10.4]} 17. Nxc5 {[%clk 0:02:25.6]} 17... Nxc5 {[%clk 0:02:08.1]} 18.
Rxd8+ {[%clk 0:02:23.3]} 18... Rxd8 {[%clk 0:02:05.3]} 19. b4 {[%clk 0:02:23.9]}
19... Nd7 {[%clk 0:01:38]} 20. Bxa7 {[%clk 0:02:12.4]} 20... Ra8 {[%clk
0:01:36.7]} 21. Rd1 {[%clk 0:02:12.5]} 21... Nf8 {[%clk 0:01:24.1]} 22. Bc5
{[%clk 0:02:06.3]} 22... Bxc5 {[%clk 0:01:22.3]} 23. bxc5 {[%clk 0:02:07.2]}
23... Rxa3 {[%clk 0:01:22.6]} 24. Rd8 {[%clk 0:02:07.1]} 24... f6 {[%clk
0:01:13.1]} 25. Rb8 {[%clk 0:02:06.5]} 25... Rc3 {[%clk 0:00:58.7]} 26. Nd4
{[%clk 0:02:05]} 26... Bf7 {[%clk 0:00:50.6]} 27. Rxb7 {[%clk 0:02:03.9]} 27...
Rxc4 {[%clk 0:00:50.9]} 28. Nxc6 {[%clk 0:02:01.6]} 28... Rxc5 {[%clk
0:00:51.1]} 29. Ne7+ {[%clk 0:02:00.2]} 29... Kh8 {[%clk 0:00:50.3]} 30. Rb8
{[%clk 0:02:01.1]} 30... g6 {[%clk 0:00:04.2]} 31. Rxf8+ {[%clk 0:01:59.5]}
31... Kg7 {[%clk 0:00:05.1]} 32. Rb8 {[%clk 0:01:59.2]} 32... Rc7 {[%clk
0:00:03.7]} 33. Nc6 {[%clk 0:01:59.2]} 33... e5 {[%clk 0:00:02.6]} 34. Nd8
{[%clk 0:01:57.7]} 1-0

[Event "*** Titled Tuesday Blitz"]
[Site "Chess.com"]
[Date "2020.11.03"]
[Round "1"]
[White "DenisQ"]
[Black "indfraeng"]
[Result "1-0"]
[WhiteElo "2664"]
[BlackElo "2336"]
[TimeControl "180+1"]
[EndTime "10:05:30 PST"]
[Termination "DenisQ won by resignation"]

1. Nf3 {[%clk 0:02:59]} 1... Nf6 {[%clk 0:02:59.3]} 2. c4 {[%clk 0:02:58]} 2...
c5 {[%clk 0:02:59]} 3. Nc3 {[%clk 0:02:56.7]} 3... d5 {[%clk 0:02:59]} 4. cxd5
{[%clk 0:02:54.9]} 4... Nxd5 {[%clk 0:02:59.9]} 5. e4 {[%clk 0:02:54.3]} 5...
Nb4 {[%clk 0:03:00.1]} 6. Bb5+ {[%clk 0:02:51.9]} 6... Bd7 {[%clk 0:02:53.3]} 7.
Bc4 {[%clk 0:02:49.5]} 7... e6 {[%clk 0:02:28]} 8. O-O {[%clk 0:02:45.8]} 8...
Be7 {[%clk 0:02:22.4]} 9. d4 {[%clk 0:02:37]} 9... cxd4 {[%clk 0:02:18]} 10.
Nxd4 {[%clk 0:02:37.9]} 10... O-O {[%clk 0:02:16.7]} 11. Be3 {[%clk 0:02:36.6]}
11... N8c6 {[%clk 0:02:08.5]} 12. Rc1 {[%clk 0:02:23.8]} 12... Nxd4 {[%clk
0:02:07.1]} 13. Qxd4 {[%clk 0:02:22.8]} 13... Nc6 {[%clk 0:02:06.5]} 14. Qd2
{[%clk 0:02:22.6]} 14... Bf6 {[%clk 0:02:04.4]} 15. Rfd1 {[%clk 0:02:20]} 15...
Ne5 {[%clk 0:01:48.3]} 16. Be2 {[%clk 0:02:03.6]} 16... Bc6 {[%clk 0:01:43.2]}
17. f4 {[%clk 0:02:00.4]} 17... Qxd2 {[%clk 0:01:36.1]} 18. Rxd2 {[%clk
0:01:59.3]} 18... Ng6 {[%clk 0:01:37]} 19. e5 {[%clk 0:01:57.9]} 19... Be7
{[%clk 0:01:36.9]} 20. Bb5 {[%clk 0:01:52.4]} 20... Rac8 {[%clk 0:01:27]} 21.
Bxc6 {[%clk 0:01:48.8]} 21... Rxc6 {[%clk 0:01:27.9]} 22. Rd7 {[%clk 0:01:47.9]}
22... Rb8 {[%clk 0:01:17]} 23. Bxa7 {[%clk 0:01:43.2]} 23... Ra8 {[%clk
0:01:09.7]} 24. Be3 {[%clk 0:01:41.4]} 24... Bc5 {[%clk 0:01:07.4]} 25. Bxc5
{[%clk 0:01:39.1]} 25... Rxc5 {[%clk 0:01:08.3]} 26. g3 {[%clk 0:01:38.9]} 26...
b5 {[%clk 0:01:07.4]} 27. Rcd1 {[%clk 0:01:36.3]} 27... h5 {[%clk 0:00:59.5]}
28. Rd8+ {[%clk 0:01:31.8]} 28... Rxd8 {[%clk 0:00:58.6]} 29. Rxd8+ {[%clk
0:01:32.7]} 29... Kh7 {[%clk 0:00:58.3]} 30. Rb8 {[%clk 0:01:32.4]} 30... Rc4
{[%clk 0:00:53]} 31. Rxb5 {[%clk 0:01:29.5]} 31... Rd4 {[%clk 0:00:53.2]} 32.
Rb7 {[%clk 0:01:27.2]} 32... Kg8 {[%clk 0:00:45.7]} 33. a4 {[%clk 0:01:25.8]}
33... h4 {[%clk 0:00:46.1]} 34. a5 {[%clk 0:01:24.8]} 34... h3 {[%clk
0:00:42.2]} 35. a6 {[%clk 0:01:24.2]} 1-0

[Event "*** Titled Tuesday Blitz"]
[Site "Chess.com"]
[Date "2020.11.03"]
[Round "1"]
[White "szefru"]
[Black "Artyom_ChessMate"]
[Result "0-1"]
[WhiteElo "2272"]
[BlackElo "2585"]
[TimeControl "180+1"]
[EndTime "10:05:30 PST"]
[Termination "Artyom_ChessMate won by resignation"]

1. e4 {[%clk 0:02:59.3]} 1... e5 {[%clk 0:02:58.9]} 2. Nf3 {[%clk 0:02:58.3]}
2... Nc6 {[%clk 0:02:58.7]} 3. Bb5 {[%clk 0:02:57.1]} 3... a6 {[%clk 0:02:57.7]}
4. Ba4 {[%clk 0:02:54.4]} 4... Nf6 {[%clk 0:02:56.6]} 5. Qe2 {[%clk 0:02:54.1]}
5... b5 {[%clk 0:02:54.5]} 6. Bb3 {[%clk 0:02:53.9]} 6... Be7 {[%clk 0:02:55.4]}
7. c3 {[%clk 0:02:54.1]} 7... O-O {[%clk 0:02:55.6]} 8. O-O {[%clk 0:02:54.2]}
8... Bb7 {[%clk 0:02:56.2]} 9. Rd1 {[%clk 0:02:47.7]} 9... d6 {[%clk 0:02:56.3]}
10. d3 {[%clk 0:02:40.8]} 10... h6 {[%clk 0:02:55.4]} 11. Nbd2 {[%clk
0:02:41.2]} 11... Re8 {[%clk 0:02:55.3]} 12. Nf1 {[%clk 0:02:41.5]} 12... Na5
{[%clk 0:02:43.7]} 13. Bc2 {[%clk 0:02:40.4]} 13... c5 {[%clk 0:02:44.1]} 14.
Ng3 {[%clk 0:02:38.8]} 14... Bf8 {[%clk 0:02:43.3]} 15. Nf5 {[%clk 0:02:37.5]}
15... Nc6 {[%clk 0:02:40.5]} 16. h3 {[%clk 0:02:36.7]} 16... d5 {[%clk
0:02:37.4]} 17. Nh2 {[%clk 0:02:33.8]} 17... Qc7 {[%clk 0:02:30]} 18. Ng4 {[%clk
0:02:32.7]} 18... Re6 {[%clk 0:01:57.6]} 19. a4 {[%clk 0:02:05.8]} 19... Rd8
{[%clk 0:01:49.2]} 20. axb5 {[%clk 0:01:59]} 20... axb5 {[%clk 0:01:48]} 21.
exd5 {[%clk 0:01:41.3]} 21... Nxd5 {[%clk 0:01:44.4]} 22. Qe4 {[%clk 0:00:29]}
22... Rg6 {[%clk 0:01:37.8]} 23. Nge3 {[%clk 0:00:27.2]} 23... Nf4 {[%clk
0:01:36.7]} 24. Ng4 {[%clk 0:00:26.8]} 24... h5 {[%clk 0:01:28.5]} 25. Bxf4
{[%clk 0:00:26.1]} 25... exf4 {[%clk 0:01:29.4]} 26. Nh2 {[%clk 0:00:25]} 26...
Nd4 {[%clk 0:01:27.3]} 27. Qe1 {[%clk 0:00:23.8]} 27... Rxg2+ {[%clk 0:01:25.7]}
28. Kf1 {[%clk 0:00:24]} 28... Nxc2 {[%clk 0:01:26.1]} 0-1

[Event "*** Titled Tuesday Blitz"]
[Site "Chess.com"]
[Date "2020.11.03"]
[Round "1"]
[White "Sergey85Rodchenkov"]
[Black "Firouzja2003"]
[Result "0-1"]
[WhiteElo "2469"]
[BlackElo "3065"]
[TimeControl "180+1"]
[EndTime "10:05:31 PST"]
[Termination "Firouzja2003 won by resignation"]

1. e4 {[%clk 0:03:00.9]} 1... b6 {[%clk 0:02:58.9]} 2. d4 {[%clk 0:03:00.1]}
2... Bb7 {[%clk 0:02:59.6]} 3. Bd3 {[%clk 0:03:00.4]} 3... e6 {[%clk 0:02:58.4]}
4. Nf3 {[%clk 0:03:00.2]} 4... d5 {[%clk 0:02:53.7]} 5. exd5 {[%clk 0:02:56.5]}
5... Qxd5 {[%clk 0:02:52.3]} 6. O-O {[%clk 0:02:54.6]} 6... Nf6 {[%clk
0:02:48.7]} 7. Nc3 {[%clk 0:02:45.8]} 7... Qh5 {[%clk 0:02:45.5]} 8. Ne5 {[%clk
0:02:44.9]} 8... Qxd1 {[%clk 0:02:44.7]} 9. Rxd1 {[%clk 0:02:44.6]} 9... a6
{[%clk 0:02:41.6]} 10. Bf4 {[%clk 0:02:42.9]} 10... Bd6 {[%clk 0:02:39.3]} 11.
Bg3 {[%clk 0:02:41.3]} 11... Nc6 {[%clk 0:02:35]} 12. Ne4 {[%clk 0:02:29.2]}
12... Bxe5 {[%clk 0:02:17.2]} 13. dxe5 {[%clk 0:02:27.3]} 13... Nd7 {[%clk
0:02:17.7]} 14. f4 {[%clk 0:02:09]} 14... Nb4 {[%clk 0:02:14.4]} 15. Nf2 {[%clk
0:02:04.8]} 15... Nc5 {[%clk 0:02:03.1]} 16. a3 {[%clk 0:01:48.5]} 16... Ncxd3
{[%clk 0:01:53.7]} 17. cxd3 {[%clk 0:01:26.4]} 17... Nc6 {[%clk 0:01:52.2]} 18.
Bh4 {[%clk 0:01:19.9]} 18... Nd4 {[%clk 0:01:47.9]} 19. Ne4 {[%clk 0:00:34.2]}
19... Ne2+ {[%clk 0:01:45.2]} 20. Kf2 {[%clk 0:00:34.3]} 20... Nxf4 {[%clk
0:01:46.1]} 21. Rac1 {[%clk 0:00:33.3]} 21... Ng6 {[%clk 0:01:40.4]} 22. Bg5
{[%clk 0:00:28.5]} 22... h6 {[%clk 0:01:40.3]} 23. Be3 {[%clk 0:00:26.9]} 23...
Rc8 {[%clk 0:01:39.4]} 24. Bd4 {[%clk 0:00:22.8]} 24... O-O {[%clk 0:01:38.7]}
25. Bc3 {[%clk 0:00:22.9]} 25... Rfd8 {[%clk 0:01:38.6]} 26. Ke3 {[%clk
0:00:21.5]} 26... Rd7 {[%clk 0:01:37.7]} 27. Rf1 {[%clk 0:00:20.7]} 27... Rcd8
{[%clk 0:01:36.6]} 28. Rcd1 {[%clk 0:00:21.4]} 28... Ne7 {[%clk 0:01:36.6]} 29.
g4 {[%clk 0:00:18.8]} 29... Nd5+ {[%clk 0:01:36.4]} 30. Ke2 {[%clk 0:00:19.3]}
30... a5 {[%clk 0:01:36.7]} 31. Rf3 {[%clk 0:00:17.7]} 31... Nxc3+ {[%clk
0:01:36.8]} 32. bxc3 {[%clk 0:00:17.6]} 32... Bxe4 {[%clk 0:01:36.9]} 0-1

[Event "*** Titled Tuesday Blitz"]
[Site "Chess.com"]
[Date "2020.11.03"]
[Round "1"]
[White "markberk"]
[Black "Fandorine"]
[Result "0-1"]
[WhiteElo "2420"]
[BlackElo "2845"]
[TimeControl "180+1"]
[EndTime "10:05:33 PST"]
[Termination "Fandorine won by resignation"]

1. Nf3 {[%clk 0:02:58.3]} 1... Nf6 {[%clk 0:02:56.6]} 2. d4 {[%clk 0:02:56.4]}
2... g6 {[%clk 0:02:51.9]} 3. Bg5 {[%clk 0:02:54.6]} 3... Bg7 {[%clk 0:02:45.8]}
4. Nbd2 {[%clk 0:02:53.9]} 4... O-O {[%clk 0:02:42.1]} 5. c3 {[%clk 0:02:53.4]}
5... d6 {[%clk 0:02:41.5]} 6. e4 {[%clk 0:02:52.9]} 6... Nc6 {[%clk 0:02:37.7]}
7. Bb5 {[%clk 0:02:49.4]} 7... Nd7 {[%clk 0:02:35.3]} 8. Bxc6 {[%clk 0:02:42.8]}
8... bxc6 {[%clk 0:02:35.5]} 9. O-O {[%clk 0:02:42.7]} 9... Rb8 {[%clk 0:02:34]}
10. Qc2 {[%clk 0:02:38.5]} 10... c5 {[%clk 0:02:33.9]} 11. Rfe1 {[%clk
0:02:30.5]} 11... Re8 {[%clk 0:02:16]} 12. Rad1 {[%clk 0:02:28.1]} 12... cxd4
{[%clk 0:02:14.2]} 13. cxd4 {[%clk 0:02:19.6]} 13... Nb6 {[%clk 0:02:13.8]} 14.
b3 {[%clk 0:01:59.1]} 14... Bb7 {[%clk 0:02:08.5]} 15. e5 {[%clk 0:01:55.9]}
15... Qd7 {[%clk 0:02:07.4]} 16. h3 {[%clk 0:01:32.7]} 16... Rbc8 {[%clk
0:02:04.5]} 17. Ne4 {[%clk 0:01:27.2]} 17... Qf5 {[%clk 0:02:00.9]} 18. Qe2
{[%clk 0:01:24.8]} 18... Nd5 {[%clk 0:01:57.1]} 19. Ng3 {[%clk 0:01:19.9]} 19...
Qd7 {[%clk 0:01:56.5]} 20. Qd2 {[%clk 0:01:18.1]} 20... Nb6 {[%clk 0:01:52.4]}
21. Ne4 {[%clk 0:01:12.5]} 21... Bd5 {[%clk 0:01:46]} 22. Bh6 {[%clk 0:01:01.4]}
22... Bh8 {[%clk 0:01:46.2]} 23. Nfg5 {[%clk 0:00:45.6]} 23... f6 {[%clk
0:01:35.1]} 24. Nc3 {[%clk 0:00:44.1]} 24... fxg5 {[%clk 0:01:27.9]} 25. Nxd5
{[%clk 0:00:43.2]} 25... Nxd5 {[%clk 0:01:28.2]} 26. e6 {[%clk 0:00:43]} 26...
Qb5 {[%clk 0:01:20.9]} 27. Qxg5 {[%clk 0:00:38.8]} 27... Nc3 {[%clk 0:01:19]}
28. Qg3 {[%clk 0:00:26.3]} 0-1

[Event "*** Titled Tuesday Blitz"]
[Site "Chess.com"]
[Date "2020.11.03"]
[Round "1"]
[White "Mikhal867"]
[Black "ftorodent"]
[Result "0-1"]
[WhiteElo "2343"]
[BlackElo "2674"]
[TimeControl "180+1"]
[EndTime "10:05:34 PST"]
[Termination "ftorodent won by resignation"]

1. c4 {[%clk 0:02:50.5]} 1... f5 {[%clk 0:02:57.4]} 2. Nc3 {[%clk 0:02:48.8]}
2... Nf6 {[%clk 0:02:57.2]} 3. g3 {[%clk 0:02:47.9]} 3... g6 {[%clk 0:02:56.8]}
4. Bg2 {[%clk 0:02:45.7]} 4... Bg7 {[%clk 0:02:57.1]} 5. d4 {[%clk 0:02:40.2]}
5... O-O {[%clk 0:02:56.9]} 6. Nf3 {[%clk 0:02:39.7]} 6... d6 {[%clk 0:02:56.4]}
7. b3 {[%clk 0:02:38.8]} 7... Qe8 {[%clk 0:02:52.4]} 8. O-O {[%clk 0:02:33.7]}
8... e5 {[%clk 0:02:41.6]} 9. dxe5 {[%clk 0:02:33.1]} 9... dxe5 {[%clk
0:02:41.7]} 10. Ba3 {[%clk 0:02:32.9]} 10... Rf7 {[%clk 0:02:40.4]} 11. e4
{[%clk 0:02:20.8]} 11... Nc6 {[%clk 0:02:37.5]} 12. Ng5 {[%clk 0:02:01.9]} 12...
Rd7 {[%clk 0:02:37]} 13. Nd5 {[%clk 0:01:58.4]} 13... h6 {[%clk 0:02:32.1]} 14.
Nh3 {[%clk 0:01:51.1]} 14... Nxe4 {[%clk 0:02:27.5]} 15. Bxe4 {[%clk 0:01:18.6]}
15... fxe4 {[%clk 0:02:26.7]} 16. Kg2 {[%clk 0:01:06.5]} 16... Nd4 {[%clk
0:02:20.7]} 17. Qb1 {[%clk 0:01:01.1]} 17... Rf7 {[%clk 0:02:04]} 18. Qxe4
{[%clk 0:00:55]} 18... Bf5 {[%clk 0:02:03.9]} 19. Qh4 {[%clk 0:00:52.4]} 19...
g5 {[%clk 0:02:00]} 20. Qh5 {[%clk 0:00:45.9]} 20... g4 {[%clk 0:01:37.2]} 21.
Ng1 {[%clk 0:00:36.9]} 21... Be4+ {[%clk 0:01:37]} 22. f3 {[%clk 0:00:36.9]}
22... Nxf3 {[%clk 0:01:22.9]} 23. Qxg4 {[%clk 0:00:23.7]} 23... Ng5+ {[%clk
0:01:21.8]} 0-1